[Event "*** SCC Grand Prix: Titled Tuesday Blitz"]
[Site "Chess.com"]
[Date "2020.10.13"]
[Round "6"]
[White "karinachess1"]
[Black "Fy_Rakotomaharo"]
[Result "1-0"]
[WhiteElo "2526"]
[BlackElo "2644"]
[TimeControl "180+1"]
[EndTime "11:08:24 PDT"]
[Termination "karinachess1 won by resignation"]

1. e4 {[%clk 0:03:00.9]} 1... e5 {[%clk 0:02:59.2]} 2. Nf3 {[%clk 0:03:00.1]}
2... Nc6 {[%clk 0:02:59.5]} 3. Bb5 {[%clk 0:03:00]} 3... a6 {[%clk 0:02:59.7]}
4. Ba4 {[%clk 0:02:59.9]} 4... Nf6 {[%clk 0:03:00.1]} 5. O-O {[%clk 0:03:00.1]}
5... Bc5 {[%clk 0:03:00.2]} 6. c3 {[%clk 0:02:55.4]} 6... b5 {[%clk 0:02:59.9]}
7. Bb3 {[%clk 0:02:55.3]} 7... d6 {[%clk 0:02:54.3]} 8. a4 {[%clk 0:02:55.3]}
8... b4 {[%clk 0:02:51.3]} 9. d4 {[%clk 0:02:44.7]} 9... Ba7 {[%clk 0:02:47.6]}
10. dxe5 {[%clk 0:02:41.7]} 10... dxe5 {[%clk 0:02:37.4]} 11. Qxd8+ {[%clk
0:02:36.6]} 11... Nxd8 {[%clk 0:02:38.3]} 12. Nxe5 {[%clk 0:02:36]} 12... Nxe4
{[%clk 0:02:31.6]} 13. Bd5 {[%clk 0:02:30.1]} 13... Bb7 {[%clk 0:02:31.5]} 14.
Bxb7 {[%clk 0:01:56.4]} 14... Nxb7 {[%clk 0:02:30.8]} 15. Nd2 {[%clk 0:01:53.3]}
15... Nbd6 {[%clk 0:01:57.7]} 16. cxb4 {[%clk 0:01:37.1]} 16... O-O {[%clk
0:01:35.9]} 17. Nc6 {[%clk 0:01:36]} 17... Rfe8 {[%clk 0:01:28]} 18. Nxe4 {[%clk
0:01:27.1]} 18... Nxe4 {[%clk 0:01:25]} 19. Nxa7 {[%clk 0:01:08.6]} 19... Rxa7
{[%clk 0:01:25.9]} 20. Bf4 {[%clk 0:00:48.1]} 20... g5 {[%clk 0:01:14.9]} 21.
Be3 {[%clk 0:00:45.9]} 21... Rb7 {[%clk 0:01:14.3]} 22. Rac1 {[%clk 0:00:42.7]}
22... h6 {[%clk 0:01:03.1]} 23. Rc6 {[%clk 0:00:38.6]} 23... Re6 {[%clk
0:00:50.5]} 24. Rfc1 {[%clk 0:00:31.5]} 24... Rxb4 {[%clk 0:00:48.3]} 25. Rxe6
{[%clk 0:00:23.9]} 25... fxe6 {[%clk 0:00:48.4]} 26. Rc6 {[%clk 0:00:15.8]}
26... Rxb2 {[%clk 0:00:46.8]} 27. h3 {[%clk 0:00:16.3]} 27... Nd6 {[%clk
0:00:26.6]} 28. Rxa6 {[%clk 0:00:16]} 28... Ra2 {[%clk 0:00:19.2]} 29. Ra8+
{[%clk 0:00:14.7]} 29... Kf7 {[%clk 0:00:17.7]} 30. Ra7 {[%clk 0:00:08.9]} 30...
Kg6 {[%clk 0:00:16.1]} 31. Rxc7 {[%clk 0:00:06.5]} 31... Rxa4 {[%clk 0:00:15.6]}
32. Rc6 {[%clk 0:00:07.2]} 32... Ra1+ {[%clk 0:00:13.8]} 33. Kh2 {[%clk
0:00:06.9]} 33... Rd1 {[%clk 0:00:14.4]} 34. Bc5 {[%clk 0:00:06.7]} 34... Ne4
{[%clk 0:00:14.8]} 35. Rxe6+ {[%clk 0:00:06.8]} 35... Kf5 {[%clk 0:00:15.2]} 36.
Rc6 {[%clk 0:00:02.4]} 36... h5 {[%clk 0:00:02.7]} 37. Be3 {[%clk 0:00:02.5]}
37... g4 {[%clk 0:00:02.7]} 38. hxg4+ {[%clk 0:00:02.3]} 38... hxg4 {[%clk
0:00:03.6]} 39. Ra6 {[%clk 0:00:02.4]} 39... Nc3 {[%clk 0:00:03.1]} 40. Ra5+
{[%clk 0:00:02.3]} 40... Ke4 {[%clk 0:00:02.4]} 41. Rg5 {[%clk 0:00:01.4]} 41...
Ne2 {[%clk 0:00:02.1]} 42. Rxg4+ {[%clk 0:00:01.6]} 42... Kd3 {[%clk 0:00:02.5]}
43. Rg8 {[%clk 0:00:01.3]} 43... Rb1 {[%clk 0:00:02.7]} 44. Rd8+ {[%clk
0:00:01.5]} 44... Ke4 {[%clk 0:00:02.5]} 45. Re8+ {[%clk 0:00:02.1]} 45... Kd3
{[%clk 0:00:02.9]} 46. g4 {[%clk 0:00:01.7]} 46... Rb7 {[%clk 0:00:02.5]} 47. g5
{[%clk 0:00:01]} 47... Nc3 {[%clk 0:00:02.7]} 48. Re5 {[%clk 0:00:01.7]} 48...
Ne4 {[%clk 0:00:02.7]} 49. Rf5 {[%clk 0:00:02]} 49... Ke2 {[%clk 0:00:02.6]} 50.
Rd5 {[%clk 0:00:02.7]} 50... Rg7 {[%clk 0:00:02.4]} 51. Rf5 {[%clk 0:00:03.1]}
51... Nc3 {[%clk 0:00:02.6]} 52. Kg2 {[%clk 0:00:03.2]} 52... Nd1 {[%clk
0:00:02.3]} 53. Kg3 {[%clk 0:00:03.2]} 53... Nxe3 {[%clk 0:00:02.3]} 54. fxe3
{[%clk 0:00:04.1]} 54... Kxe3 {[%clk 0:00:03.2]} 55. Kg4 {[%clk 0:00:05]} 55...
Ke4 {[%clk 0:00:03.6]} 56. Rf6 {[%clk 0:00:05.5]} 56... Ke5 {[%clk 0:00:03.8]}
57. Rf1 {[%clk 0:00:06.2]} 57... Ke6 {[%clk 0:00:03.5]} 58. Kh5 {[%clk
0:00:06.8]} 58... Rh7+ {[%clk 0:00:03.5]} 59. Kg6 {[%clk 0:00:07.1]} 59... Rh2
{[%clk 0:00:04.4]} 60. Kg7 {[%clk 0:00:07.5]} 60... Rg2 {[%clk 0:00:04.1]} 61.
g6 {[%clk 0:00:08.4]} 61... Ke5 {[%clk 0:00:04.1]} 62. Kh7 {[%clk 0:00:08.2]}
62... Rh2+ {[%clk 0:00:03.7]} 63. Kg8 {[%clk 0:00:08.4]} 63... Ke6 {[%clk
0:00:04]} 64. g7 {[%clk 0:00:09.3]} 64... Rg2 {[%clk 0:00:04.5]} 65. Kf8 {[%clk
0:00:09.4]} 65... Ra2 {[%clk 0:00:03]} 66. g8=Q+ {[%clk 0:00:09.4]} 1-0

[Event "*** SCC Grand Prix: Titled Tuesday Blitz"]
[Site "Chess.com"]
[Date "2020.10.13"]
[Round "6"]
[White "K_A_S_T_O_R"]
[Black "rpragchess"]
[Result "1/2-1/2"]
[WhiteElo "2718"]
[BlackElo "2898"]
[TimeControl "180+1"]
[EndTime "11:08:27 PDT"]
[Termination "Game drawn by repetition"]

1. e4 {[%clk 0:03:00.9]} 1... c5 {[%clk 0:02:59.7]} 2. Nf3 {[%clk 0:03:01]} 2...
Nc6 {[%clk 0:02:56.7]} 3. Bb5 {[%clk 0:03:00.5]} 3... g6 {[%clk 0:02:54.4]} 4.
c3 {[%clk 0:03:00.1]} 4... Nf6 {[%clk 0:02:54.1]} 5. Qe2 {[%clk 0:02:59.7]} 5...
Bg7 {[%clk 0:02:52]} 6. O-O {[%clk 0:03:00.2]} 6... O-O {[%clk 0:02:52.4]} 7.
Rd1 {[%clk 0:03:00.6]} 7... d6 {[%clk 0:02:48.5]} 8. d4 {[%clk 0:02:54.2]} 8...
cxd4 {[%clk 0:02:40.8]} 9. cxd4 {[%clk 0:02:53.9]} 9... Bg4 {[%clk 0:02:41.4]}
10. Bxc6 {[%clk 0:02:51.6]} 10... bxc6 {[%clk 0:02:40.5]} 11. h3 {[%clk
0:02:49.3]} 11... Bxf3 {[%clk 0:02:40.5]} 12. Qxf3 {[%clk 0:02:49.9]} 12... Nd7
{[%clk 0:02:40.1]} 13. Nc3 {[%clk 0:02:45.6]} 13... Rb8 {[%clk 0:02:38.8]} 14.
Rb1 {[%clk 0:02:41.2]} 14... Qa5 {[%clk 0:02:19.4]} 15. Be3 {[%clk 0:02:34.4]}
15... Qa6 {[%clk 0:02:17.7]} 16. b3 {[%clk 0:02:21.5]} 16... Rfc8 {[%clk
0:02:15.6]} 17. Rbc1 {[%clk 0:02:21.9]} 17... Qa3 {[%clk 0:02:08.4]} 18. Rc2
{[%clk 0:02:19.2]} 18... Nb6 {[%clk 0:02:01.7]} 19. Qe2 {[%clk 0:02:08.7]} 19...
Qa5 {[%clk 0:01:52.6]} 20. Kh1 {[%clk 0:02:03]} 20... c5 {[%clk 0:01:44.6]} 21.
dxc5 {[%clk 0:02:01.1]} 21... dxc5 {[%clk 0:01:32.8]} 22. Nd5 {[%clk 0:02:00.6]}
22... Kf8 {[%clk 0:01:08.9]} 23. Rdc1 {[%clk 0:01:56.6]} 23... Nxd5 {[%clk
0:01:08]} 24. exd5 {[%clk 0:01:56]} 24... Rb5 {[%clk 0:00:59.7]} 25. Qd3 {[%clk
0:01:42.1]} 25... Be5 {[%clk 0:00:47.6]} 26. Qe4 {[%clk 0:01:28]} 26... Bd6
{[%clk 0:00:46.3]} 27. Qd3 {[%clk 0:01:17.5]} 27... Rb7 {[%clk 0:00:36.6]} 28.
Bd2 {[%clk 0:01:14.4]} 28... Qb5 {[%clk 0:00:36.2]} 29. Bh6+ {[%clk 0:01:14]}
29... Ke8 {[%clk 0:00:32.6]} 30. Qe4 {[%clk 0:01:11.1]} 30... Qb4 {[%clk
0:00:31.3]} 31. Rc4 {[%clk 0:01:10.3]} 31... Qa3 {[%clk 0:00:31.5]} 32. R1c2
{[%clk 0:01:10.4]} 32... Qa5 {[%clk 0:00:27.4]} 33. g4 {[%clk 0:01:08.2]} 33...
Qd8 {[%clk 0:00:25.7]} 34. Re2 {[%clk 0:01:06.9]} 34... Rb4 {[%clk 0:00:24.6]}
35. Kg2 {[%clk 0:01:03.7]} 35... Qd7 {[%clk 0:00:19.2]} 36. Qd3 {[%clk
0:01:03.3]} 36... Qb5 {[%clk 0:00:18.1]} 37. Qc2 {[%clk 0:00:58]} 37... Rxc4
{[%clk 0:00:18]} 38. bxc4 {[%clk 0:00:58.5]} 38... Qb4 {[%clk 0:00:18.5]} 39.
Bd2 {[%clk 0:00:56.9]} 39... Qa3 {[%clk 0:00:18.7]} 40. Re3 {[%clk 0:00:55.6]}
40... Qa6 {[%clk 0:00:19.2]} 41. Rb3 {[%clk 0:00:56]} 41... Rb8 {[%clk
0:00:17.6]} 42. Rxb8+ {[%clk 0:00:49.6]} 42... Bxb8 {[%clk 0:00:18.5]} 43. Qb3
{[%clk 0:00:50]} 43... Bd6 {[%clk 0:00:18.4]} 44. Be3 {[%clk 0:00:49]} 44... Kd7
{[%clk 0:00:17.7]} 45. a4 {[%clk 0:00:48.1]} 45... f5 {[%clk 0:00:11.6]} 46.
gxf5 {[%clk 0:00:47.1]} 46... gxf5 {[%clk 0:00:12.5]} 47. Qc2 {[%clk 0:00:47.3]}
47... e6 {[%clk 0:00:09.2]} 48. dxe6+ {[%clk 0:00:46.7]} 48... Kxe6 {[%clk
0:00:10.1]} 49. Qd3 {[%clk 0:00:45.8]} 49... Qc6+ {[%clk 0:00:10]} 50. f3 {[%clk
0:00:45.5]} 50... a6 {[%clk 0:00:07.7]} 51. a5 {[%clk 0:00:44]} 51... Be7 {[%clk
0:00:06.7]} 52. Bd2 {[%clk 0:00:44.2]} 52... Bf6 {[%clk 0:00:06.4]} 53. Qe3+
{[%clk 0:00:42.5]} 53... Kf7 {[%clk 0:00:06.2]} 54. Qh6 {[%clk 0:00:42.4]} 54...
Qa4 {[%clk 0:00:04.3]} 55. Qxh7+ {[%clk 0:00:41.7]} 55... Ke6 {[%clk 0:00:04.8]}
56. Qg8+ {[%clk 0:00:41.9]} 56... Ke7 {[%clk 0:00:05.4]} 57. Qd5 {[%clk
0:00:40.6]} 57... Qc2 {[%clk 0:00:04]} 58. Qxc5+ {[%clk 0:00:40.4]} 58... Ke8
{[%clk 0:00:03.7]} 59. Qc6+ {[%clk 0:00:40]} 59... Ke7 {[%clk 0:00:02.4]} 60.
Qc7+ {[%clk 0:00:27.8]} 60... Ke8 {[%clk 0:00:02.6]} 61. Qd6 {[%clk 0:00:27.1]}
61... Bc3 {[%clk 0:00:02.5]} 62. Qe6+ {[%clk 0:00:21.1]} 62... Kd8 {[%clk
0:00:02.8]} 63. Qd6+ {[%clk 0:00:17.7]} 63... Ke8 {[%clk 0:00:03.4]} 64. Qe6+
{[%clk 0:00:18]} 64... Kd8 {[%clk 0:00:03.9]} 65. Qd6+ {[%clk 0:00:09.8]} 65...
Ke8 {[%clk 0:00:04.3]} 1/2-1/2

[Event "*** SCC Grand Prix: Titled Tuesday Blitz"]
[Site "Chess.com"]
[Date "2020.10.13"]
[Round "6"]
[White "TC2304"]
[Black "niki_2003"]
[Result "0-1"]
[WhiteElo "2232"]
[BlackElo "1798"]
[TimeControl "180+1"]
[EndTime "11:08:27 PDT"]
[Termination "niki_2003 won by resignation"]

1. d4 {[%clk 0:03:00.9]} 1... Nf6 {[%clk 0:02:56.5]} 2. Bg5 {[%clk 0:03:01.3]}
2... c5 {[%clk 0:02:55.5]} 3. Nc3 {[%clk 0:03:01.2]} 3... h6 {[%clk 0:02:52.4]}
4. Bxf6 {[%clk 0:02:57.5]} 4... exf6 {[%clk 0:02:51.4]} 5. Nf3 {[%clk
0:02:46.4]} 5... c4 {[%clk 0:02:51.4]} 6. e4 {[%clk 0:02:46.1]} 6... Bb4 {[%clk
0:02:43.1]} 7. Bxc4 {[%clk 0:02:44.6]} 7... Bxc3+ {[%clk 0:02:43.6]} 8. bxc3
{[%clk 0:02:44.5]} 8... Qc7 {[%clk 0:02:44.2]} 9. Qd3 {[%clk 0:02:39.6]} 9...
O-O {[%clk 0:02:44.5]} 10. O-O {[%clk 0:02:38.9]} 10... Nc6 {[%clk 0:02:40.8]}
11. Rfe1 {[%clk 0:02:30.4]} 11... b6 {[%clk 0:02:41.7]} 12. Bd5 {[%clk
0:02:21.3]} 12... Bb7 {[%clk 0:02:41]} 13. Nh4 {[%clk 0:02:11]} 13... Ne7 {[%clk
0:02:30]} 14. Bxb7 {[%clk 0:02:08.8]} 14... Qxb7 {[%clk 0:02:29.9]} 15. Re3
{[%clk 0:02:03.5]} 15... d5 {[%clk 0:02:26.6]} 16. Rae1 {[%clk 0:01:44.1]} 16...
Rac8 {[%clk 0:02:18.4]} 17. Nf5 {[%clk 0:01:37.7]} 17... dxe4 {[%clk 0:02:10.5]}
18. Nxe7+ {[%clk 0:01:36.9]} 18... Qxe7 {[%clk 0:02:10.3]} 19. Rxe4 {[%clk
0:01:37.3]} 19... Qc7 {[%clk 0:02:09.1]} 20. R4e3 {[%clk 0:01:33.6]} 20... Qc4
{[%clk 0:02:08.3]} 21. Qxc4 {[%clk 0:01:22.9]} 21... Rxc4 {[%clk 0:02:06.9]} 22.
d5 {[%clk 0:01:21.2]} 22... Rd8 {[%clk 0:02:05.6]} 23. Rd1 {[%clk 0:01:17.2]}
23... Kf8 {[%clk 0:02:00.5]} 24. Kf1 {[%clk 0:01:12.7]} 24... Ra4 {[%clk
0:01:53.9]} 25. Ke2 {[%clk 0:01:00.7]} 25... Rxa2 {[%clk 0:01:52.8]} 26. Rd2
{[%clk 0:00:56.9]} 26... Ra1 {[%clk 0:01:44.8]} 27. c4 {[%clk 0:00:55.6]} 27...
Ra4 {[%clk 0:01:41.1]} 28. Rd4 {[%clk 0:00:55.5]} 28... b5 {[%clk 0:01:40.4]}
29. Kd2 {[%clk 0:00:42.6]} 29... Rxc4 {[%clk 0:01:35.5]} 30. Rxc4 {[%clk
0:00:38.1]} 30... bxc4 {[%clk 0:01:31.4]} 31. Kc3 {[%clk 0:00:38]} 31... Rxd5
{[%clk 0:01:31.7]} 32. Kxc4 {[%clk 0:00:38]} 32... Rd2 {[%clk 0:01:31.3]} 33.
Kb3 {[%clk 0:00:20.6]} 33... Rxf2 {[%clk 0:01:28.6]} 34. c4 {[%clk 0:00:21.2]}
34... Rxg2 {[%clk 0:01:26.9]} 35. c5 {[%clk 0:00:21.7]} 35... Rxh2 {[%clk
0:01:16.8]} 36. c6 {[%clk 0:00:21.7]} 36... Rh5 {[%clk 0:01:13.3]} 37. c7 {[%clk
0:00:17.1]} 37... Rc5 {[%clk 0:01:07.7]} 38. Rc3 {[%clk 0:00:17.2]} 38... Rxc7
{[%clk 0:01:08.1]} 39. Rxc7 {[%clk 0:00:17.8]} 39... g5 {[%clk 0:01:08]} 40. Kc4
{[%clk 0:00:15.8]} 40... Kg7 {[%clk 0:01:08.3]} 41. Kd4 {[%clk 0:00:13.6]} 41...
Kg6 {[%clk 0:00:59.4]} 42. Rxa7 {[%clk 0:00:12.2]} 42... h5 {[%clk 0:00:59.4]}
43. Ke4 {[%clk 0:00:12.3]} 43... h4 {[%clk 0:00:58.9]} 44. Ra8 {[%clk
0:00:11.5]} 44... f5+ {[%clk 0:00:57.8]} 45. Kf3 {[%clk 0:00:10.8]} 45... g4+
{[%clk 0:00:57.6]} 46. Kf4 {[%clk 0:00:10.9]} 46... f6 {[%clk 0:00:45.3]} 47.
Ra7 {[%clk 0:00:09.8]} 47... h3 {[%clk 0:00:44.5]} 48. Ra8 {[%clk 0:00:08.9]}
48... Kg7 {[%clk 0:00:37.9]} 49. Ra7+ {[%clk 0:00:08.6]} 49... Kg6 {[%clk
0:00:37.2]} 50. Ra2 {[%clk 0:00:09.5]} 50... Kh5 {[%clk 0:00:34.8]} 51. Ra8
{[%clk 0:00:09.2]} 51... Kg6 {[%clk 0:00:29.7]} 52. Rh8 {[%clk 0:00:07.6]} 52...
Kg7 {[%clk 0:00:22.5]} 53. Rh4 {[%clk 0:00:08]} 53... Kg6 {[%clk 0:00:21]} 54.
Rh8 {[%clk 0:00:08.4]} 54... Kg7 {[%clk 0:00:21.2]} 55. Rb8 {[%clk 0:00:07.7]}
55... Kg6 {[%clk 0:00:21.3]} 56. Rb2 {[%clk 0:00:07.2]} 56... Kg7 {[%clk
0:00:20.3]} 57. Kxf5 {[%clk 0:00:05.6]} 57... g3 {[%clk 0:00:19.3]} 58. Kg4
{[%clk 0:00:04.6]} 58... g2 {[%clk 0:00:17.9]} 59. Kxh3 {[%clk 0:00:03.5]} 59...
g1=Q {[%clk 0:00:17.1]} 60. Rg2+ {[%clk 0:00:04.4]} 60... Qxg2+ {[%clk
0:00:17.6]} 61. Kxg2 {[%clk 0:00:05.3]} 61... Kg6 {[%clk 0:00:18.2]} 62. Kg3
{[%clk 0:00:03.6]} 62... Kg5 {[%clk 0:00:18.4]} 63. Kf3 {[%clk 0:00:04]} 63...
Kf5 {[%clk 0:00:18.9]} 64. Ke3 {[%clk 0:00:04.7]} 64... Kg4 {[%clk 0:00:19.1]}
65. Ke2 {[%clk 0:00:04.5]} 65... f5 {[%clk 0:00:19.2]} 66. Ke3 {[%clk
0:00:05.1]} 66... Kg3 {[%clk 0:00:19.4]} 67. Ke2 {[%clk 0:00:05.7]} 67... f4
{[%clk 0:00:17.9]} 68. Kf1 {[%clk 0:00:06.3]} 68... Kf3 {[%clk 0:00:18]} 69. Ke1
{[%clk 0:00:07.2]} 69... Kg2 {[%clk 0:00:18.2]} 70. Ke2 {[%clk 0:00:07.7]} 70...
f3+ {[%clk 0:00:18.8]} 0-1

[Event "*** SCC Grand Prix: Titled Tuesday Blitz"]
[Site "Chess.com"]
[Date "2020.10.13"]
[Round "6"]
[White "Sergey85Rodchenkov"]
[Black "brunomorado"]
[Result "0-1"]
[WhiteElo "2439"]
[BlackElo "2314"]
[TimeControl "180+1"]
[EndTime "11:08:29 PDT"]
[Termination "brunomorado won by resignation"]

1. e4 {[%clk 0:03:00.9]} 1... c5 {[%clk 0:03:00.2]} 2. Nf3 {[%clk 0:03:00.1]}
2... Nc6 {[%clk 0:03:00.4]} 3. d4 {[%clk 0:03:00.2]} 3... cxd4 {[%clk
0:03:01.3]} 4. Nxd4 {[%clk 0:03:00.6]} 4... e5 {[%clk 0:03:01.9]} 5. Nb3 {[%clk
0:02:59.8]} 5... Nf6 {[%clk 0:03:01.9]} 6. Nc3 {[%clk 0:03:00.1]} 6... Bb4
{[%clk 0:03:01.9]} 7. Bc4 {[%clk 0:03:00.2]} 7... O-O {[%clk 0:02:57.8]} 8. O-O
{[%clk 0:02:59.7]} 8... Bxc3 {[%clk 0:02:57.4]} 9. bxc3 {[%clk 0:03:00.1]} 9...
Nxe4 {[%clk 0:02:58]} 10. Ba3 {[%clk 0:03:00.2]} 10... d6 {[%clk 0:02:52.8]} 11.
Qd3 {[%clk 0:02:59.5]} 11... Bf5 {[%clk 0:02:46.5]} 12. Rae1 {[%clk 0:02:58.5]}
12... Qh4 {[%clk 0:02:37.2]} 13. f4 {[%clk 0:02:57.8]} 13... Rae8 {[%clk
0:02:17]} 14. Rxe4 {[%clk 0:02:55.6]} 14... exf4 {[%clk 0:02:16.7]} 15. Rfxf4
{[%clk 0:02:55.6]} 15... Qxf4 {[%clk 0:02:15.8]} 16. Rxf4 {[%clk 0:02:55.1]}
16... Bxd3 {[%clk 0:02:16.1]} 17. Bxd3 {[%clk 0:02:51.1]} 17... Re1+ {[%clk
0:02:12.1]} 18. Kf2 {[%clk 0:02:50.4]} 18... Re6 {[%clk 0:02:10.1]} 19. Nd4
{[%clk 0:02:48.6]} 19... Rh6 {[%clk 0:02:06.6]} 20. Nf5 {[%clk 0:02:43]} 20...
Rf6 {[%clk 0:02:05.9]} 21. g3 {[%clk 0:02:25.6]} 21... Rd8 {[%clk 0:02:01.5]}
22. c4 {[%clk 0:01:53.5]} 22... Ne5 {[%clk 0:02:00.2]} 23. Ne7+ {[%clk
0:01:43.8]} 23... Kf8 {[%clk 0:01:49.9]} 24. Rxf6 {[%clk 0:01:43.7]} 24... Ng4+
{[%clk 0:01:43.2]} 25. Kf3 {[%clk 0:01:39.4]} 25... Nxf6 {[%clk 0:01:43.4]} 26.
Nd5 {[%clk 0:01:34.8]} 26... Nxd5 {[%clk 0:01:41.7]} 27. cxd5 {[%clk 0:01:34.8]}
27... Ke7 {[%clk 0:01:42.3]} 28. h4 {[%clk 0:01:32.7]} 28... Rc8 {[%clk
0:01:36.8]} 29. Bb2 {[%clk 0:01:30.6]} 29... g6 {[%clk 0:01:33.5]} 30. Bd4
{[%clk 0:01:30.6]} 30... f6 {[%clk 0:01:30.9]} 31. g4 {[%clk 0:01:30]} 31... b6
{[%clk 0:01:26.4]} 32. a4 {[%clk 0:01:29.9]} 32... Kf7 {[%clk 0:01:22.5]} 33. c4
{[%clk 0:01:28.8]} 33... Re8 {[%clk 0:01:20.6]} 34. Be3 {[%clk 0:01:19.5]} 34...
Re5 {[%clk 0:01:15.1]} 35. Bf4 {[%clk 0:01:15]} 35... Re1 {[%clk 0:01:14.6]} 36.
Bxd6 {[%clk 0:01:14.8]} 36... Ra1 {[%clk 0:01:13.7]} 37. c5 {[%clk 0:01:01.4]}
37... bxc5 {[%clk 0:01:09.7]} 38. Bxc5 {[%clk 0:01:01.4]} 38... Rxa4 {[%clk
0:01:08.7]} 39. d6 {[%clk 0:00:52.5]} 39... Ke6 {[%clk 0:01:06.2]} 40. h5 {[%clk
0:00:51.1]} 40... Ra5 {[%clk 0:00:56.9]} 41. Bb4 {[%clk 0:00:35]} 41... Ra4
{[%clk 0:00:55.7]} 42. Bc5 {[%clk 0:00:34.5]} 42... Ra5 {[%clk 0:00:54.6]} 43.
Bd4 {[%clk 0:00:25.5]} 43... gxh5 {[%clk 0:00:53.6]} 44. gxh5 {[%clk 0:00:24.3]}
44... Rxh5 {[%clk 0:00:51.5]} 45. Bxa7 {[%clk 0:00:23.1]} 45... Kxd6 {[%clk
0:00:48]} 46. Bb8+ {[%clk 0:00:23]} 46... Ke7 {[%clk 0:00:45.5]} 47. Kg4 {[%clk
0:00:22.8]} 47... Rd5 {[%clk 0:00:43.2]} 48. Bf5 {[%clk 0:00:21.3]} 48... h5+
{[%clk 0:00:39.4]} 49. Kf4 {[%clk 0:00:21.3]} 49... Rb5 {[%clk 0:00:33.2]} 50.
Ba7 {[%clk 0:00:21.1]} 50... Rb4+ {[%clk 0:00:30.1]} 51. Kf3 {[%clk 0:00:21.2]}
51... Kd6 {[%clk 0:00:30.6]} 52. Be3 {[%clk 0:00:20.7]} 52... Ke5 {[%clk
0:00:30.4]} 53. Bd3 {[%clk 0:00:20.6]} 53... h4 {[%clk 0:00:28.4]} 54. Ba6
{[%clk 0:00:17.7]} 54... h3 {[%clk 0:00:24.4]} 55. Bc8 {[%clk 0:00:15.4]} 55...
h2 {[%clk 0:00:23.9]} 56. Kg2 {[%clk 0:00:15.1]} 56... Rh4 {[%clk 0:00:19]} 57.
Kh1 {[%clk 0:00:14.7]} 57... f5 {[%clk 0:00:18]} 58. Bf2 {[%clk 0:00:14.3]}
58... Rh3 {[%clk 0:00:17.3]} 59. Bb7 {[%clk 0:00:13.4]} 59... Kf4 {[%clk
0:00:17.1]} 60. Bg2 {[%clk 0:00:12.9]} 60... Rh7 {[%clk 0:00:16.7]} 61. Bc5
{[%clk 0:00:12.5]} 61... Kg4 {[%clk 0:00:16.4]} 62. Bd6 {[%clk 0:00:12.5]} 62...
f4 {[%clk 0:00:16.6]} 63. Be4 {[%clk 0:00:12.3]} 63... Rd7 {[%clk 0:00:15.7]}
64. Bb8 {[%clk 0:00:11.3]} 64... Rd2 {[%clk 0:00:15.3]} 65. Bc6 {[%clk
0:00:09.6]} 65... f3 {[%clk 0:00:14.8]} 66. Bxh2 {[%clk 0:00:09]} 66... Rd1+
{[%clk 0:00:15]} 67. Bg1 {[%clk 0:00:07]} 67... f2 {[%clk 0:00:15.5]} 0-1